bitfinex/quotes_SOLUSD_20250424
["timestamp","ask_amount","ask_price","bid_price","bid_amount"]
[1745525997110,94.04352959,151.65,151.62,6.59543595]
[1745525997872,94.04352959,151.65,151.63,4.90005092]
[1745525999591,94.04352959,151.65,151.62,6.59543595]
[1745525999895,94.04352959,151.65,151.61,6.59587098]
[1745526000487,94.04352959,151.65,151.62,4.91144569]
[1745526001560,94.04352959,151.65,151.63,4.91144569]
[1745526002463,11.34352959,151.64,151.63,4.91144569]
[1745526006874,82.7,151.7,151.63,43.02410238]
[1745526007074,11.34352959,151.64,151.63,4.91144569]
[1745526007272,0.063,151.72,151.65,0.14216157]
[1745526007478,0.063,151.72,151.69,11.34352959]
[1745526007688,11.40652959,151.72,151.68,11.34352959]
[1745526007987,11.40652959,151.72,151.67,11.34352959]
[1745526008171,11.40652959,151.71,151.67,11.34352959]
[1745526008665,11.40652959,151.71,151.68,7.36607405]
[1745526008862,11.34352959,151.7,151.68,7.36607405]
[1745526009572,11.34352959,151.69,151.65,17.93729114]
[1745526010376,11.34352959,151.69,151.66,2.4543384]
[1745526010575,11.34352959,151.69,151.66,7.36300386]
[1745526010988,11.34352959,151.69,151.66,13.95667176]
[1745526011596,11.34352959,151.69,151.66,11.50233336]
[1745526011789,11.34352959,151.7,151.67,4.90866546]
[1745526012116,0.063,151.71,151.67,4.90866546]
[1745526012117,11.34352959,151.68,151.67,4.90866546]
[1745526012700,11.34352959,151.68,151.62,19.75508537]
[1745526012887,11.34352959,151.65,151.62,6.59508537]
[1745526013081,11.34352959,151.63,151.6,8.22573472]
[1745526013596,11.34352959,151.63,151.61,4.91293837]
[1745526014302,11.34352959,151.63,151.62,4.91293837]
[1745526016581,11.34352959,151.63,151.61,4.91293837]
[1745526016780,11.34352959,151.62,151.61,4.91293837]
[1745526019107,11.34352959,151.62,151.6,0.03]
[1745526019288,11.34352959,151.61,151.6,0.03]
[1745526019990,11.34352959,151.61,151.6,4.94570744]
[1745526021787,11.34352959,151.62,151.6,4.94570744]
[1745526022784,11.34352959,151.62,151.61,4.91570744]
[1745526024008,11.34352959,151.62,151.6,0.03]
[1745526026509,94.04352959,151.63,151.6,0.03]
[1745526027102,94.04352959,151.63,151.61,4.91746744]
[1745526028210,11.34352959,151.62,151.61,4.91746744]
[1745526034035,11.34352959,151.62,151.61,11.51333842]
[1745526034648,11.34352959,151.62,151.61,4.91746744]
[1745526036424,82.7,151.63,151.61,11.51325904]
[1745526037140,94.04352959,151.63,151.61,11.51325904]
[1745526037302,94.04352959,151.63,151.62,4.91746744]
[1745526040606,94.04352959,151.63,151.6,6.62624414]
[1745526040822,11.34352959,151.62,151.6,6.62624414]
[1745526041431,11.34352959,151.62,151.61,4.91674328]
[1745526046638,94.04352959,151.63,151.61,4.91674328]
[1745526047036,94.04352959,151.63,151.62,4.91674328]
[1745526047437,11.34352959,151.63,151.62,4.91674328]
[1745526047812,11.34352959,151.63,151.6,6.62627622]
[1745526048546,11.34352959,151.63,151.61,4.91826525]
[1745526048726,11.34352959,151.62,151.61,4.91826525]
[1745526052440,11.34352959,151.63,151.61,11.51413623]
[1745526052643,11.34352959,151.63,151.62,4.91826525]
[1745526053238,17.93853057,151.63,151.62,4.91826525]
[1745526053635,17.93853057,151.63,151.6,0.03]
[1745526053837,11.34352959,151.61,151.6,0.03]
[1745526054933,11.34352959,151.61,151.6,4.95493306]
[1745526055546,17.93940057,151.61,151.6,4.95493306]
[1745526058936,11.34352959,151.61,151.6,0.03]
[1745526062741,11.34352959,151.61,151.6,2.49774177]
[1745526063864,11.34352959,151.61,151.6,0.03]
[1745526068067,11.34352959,151.61,151.6,2.49691347]
[1745526069856,11.34352959,151.61,151.6,0.03]
[1745526076741,17.93940057,151.61,151.6,0.03]
[1745526077437,63.31351893,151.61,151.6,0.03]
[1745526077865,17.93940057,151.61,151.6,0.03]
[1745526079465,63.31351893,151.61,151.6,0.03]
[1745526079762,89.31351893,151.61,151.6,0.03]
[1745526080565,89.31351893,151.61,151.56,0.03]
[1745526080772,11.34352959,151.57,151.56,0.03]
[1745526082666,17.94114125,151.57,151.56,0.03]
[1745526085657,11.34352959,151.57,151.56,0.03]
[1745526086955,17.94114125,151.57,151.56,0.03]
[1745526088647,36.73295168,151.57,151.56,0.03]
[1745526088849,26.0,151.55,151.54,0.03]
[1745526089066,37.34352959,151.55,151.54,0.03]
[1745526090077,56.13534002,151.55,151.54,0.03]
[1745526090375,56.13534002,151.55,151.53,0.03]
[1745526090564,11.34352959,151.54,151.53,0.03]
[1745526091052,17.94244736,151.54,151.53,0.03]
[1745526092185,36.73425779,151.54,151.53,0.03]
[1745526092477,26.0,151.51,151.47,0.03]
[1745526092684,11.34352959,151.48,151.47,0.03]
[1745526093944,11.34352959,151.49,151.47,0.03]
[1745526094149,82.7,151.5,151.47,0.03]
[1745526094347,11.34352959,151.49,151.47,0.03]
[1745526096582,11.34352959,151.48,151.47,0.03]
[1745526096758,11.34352959,151.49,151.47,0.03]
[1745526097263,82.7,151.48,151.47,0.03]
[1745526100874,94.04352959,151.48,151.47,0.03]
[1745526101658,17.94506114,151.48,151.47,0.03]
[1745526101860,11.34352959,151.48,151.47,0.03]
[1745526109078,17.94506114,151.48,151.47,0.03]
[1745526110563,37.34352959,151.48,151.47,0.03]
[1745526110765,13.16,151.51,151.47,0.03]
[1745526111097,26.0,151.5,151.47,0.03]
[1745526111385,11.34352959,151.5,151.47,0.03]
[1745526112287,11.34352959,151.49,151.47,0.03]
[1745526112585,11.34352959,151.49,151.47,6.63196738]
[1745526113998,11.34352959,151.5,151.47,6.63196738]
[1745526114791,82.7,151.49,151.47,6.63196738]
[1745526117214,82.7,151.49,151.47,24.48189697]
[1745526118793,82.7,151.53,151.48,11.34352959]
[1745526118970,82.7,151.53,151.5,11.34352959]
[1745526119291,82.7,151.53,151.49,11.34352959]
[1745526119797,82.7,151.53,151.5,11.34352959]
[1745526120303,11.34352959,151.55,151.51,11.34352959]
[1745526120593,11.34352959,151.55,151.52,6.5997888]
[1745526121789,82.7,151.57,151.52,6.5997888]
[1745526122218,82.7,151.57,151.52,17.94331839]
[1745526122374,94.04352959,151.57,151.52,34.4427904]
[1745526123497,11.34352959,151.56,151.52,34.4427904]
[1745526124586,11.34352959,151.56,151.53,2.45784409]
[1745526125197,11.34352959,151.56,151.52,34.4427904]
[1745526125380,11.34352959,151.53,151.51,8.23293106]
[1745526125581,11.34352959,151.52,151.48,6.60153155]
[1745526125796,11.34352959,151.51,151.49,2.45816951]
[1745526126797,11.34352959,151.51,151.5,6.60066006]
[1745526127379,11.34352959,151.52,151.5,6.60066006]
[1745526128906,11.34352959,151.52,151.48,6.60153155]
[1745526129300,11.34352959,151.52,151.49,2.45927113]
[1745526129798,11.34352959,151.53,151.49,2.45927113]
[1745526130308,11.34352959,151.53,151.5,2.45927113]
[1745526130694,82.7,151.55,151.5,13.80280072]
[1745526130901,82.7,151.55,151.51,11.34352959]
[1745526131103,82.7,151.55,151.52,6.5997888]
[1745526131496,82.7,151.55,151.52,34.4427904]
[1745526131815,11.34352959,151.57,151.53,11.34352959]
[1745526132487,11.34352959,151.57,151.52,34.4427904]
[1745526132688,11.34352959,151.56,151.52,34.4427904]
[1745526133106,11.34352959,151.56,151.53,2.45840853]
[1745526133408,82.7,151.58,151.54,6.59891777]
[1745526133788,11.34352959,151.57,151.54,6.59891777]
[1745526134394,82.7,151.58,151.54,34.4397418]
[1745526134786,94.04352959,151.58,151.54,34.4397418]
[1745526135822,94.04352959,151.58,151.54,17.94244736]
[1745526136117,11.34352959,151.57,151.54,6.59891777]
[1745526138608,82.7,151.58,151.53,6.59915553]
[1745526138609,11.34352959,151.56,151.53,6.59915553]
[1745526142736,11.34352959,151.56,151.53,6.59915553]
[1745526143618,11.34352959,151.55,151.5,24.50352959]
[1745526143799,11.34352959,151.54,151.51,6.60004325]
[1745526144615,11.34352959,151.53,151.5,6.60048147]
[1745526144809,11.34352959,151.52,151.5,6.60048147]
[1745526145922,108.7,151.57,151.49,17.94462537]
[1745526146107,11.34352959,151.56,151.51,11.34352959]
[1745526146616,82.7,151.57,151.52,11.34352959]
[1745526146929,94.04352959,151.57,151.52,11.34352959]
[1745526147256,94.04352959,151.57,151.53,11.34352959]
[1745526147408,82.7,151.57,151.53,11.34352959]
[1745526147730,82.7,151.57,151.54,11.34352959]
[1745526148027,82.7,151.57,151.55,6.59848234]
[1745526153034,11.34352959,151.58,151.55,6.59848234]
[1745526154429,0.063,151.6,151.55,34.4382178]
[1745526154618,11.40652959,151.6,151.56,11.34352959]
[1745526154928,0.063,151.6,151.58,11.34352959]
[1745526155715,0.063,151.6,151.59,6.5967412]
[1745526155940,0.063,151.6,151.58,6.59698811]
[1745526156120,11.34352959,151.59,151.56,6.59804697]
[1745526156705,11.34352959,151.58,151.55,6.59829097]
[1745526157737,11.34352959,151.58,151.54,6.59891777]
[1745526158614,11.34352959,151.56,151.55,2.46140229]
[1745526159933,11.34352959,151.56,151.53,6.59924749]
[1745526160321,11.34352959,151.57,151.53,17.94277708]
[1745526160513,82.7,151.58,151.53,17.94277708]
[1745526160514,94.04352959,151.58,151.53,17.94277708]
[1745526160713,94.04352959,151.58,151.54,2.46277498]
[1745526161312,94.04352959,151.58,151.53,17.94277708]
[1745526161839,82.7,151.58,151.53,17.94277708]
[1745526162016,94.04352959,151.58,151.53,17.94277708]
[1745526162350,94.04352959,151.58,151.53,34.44116023]
[1745526162826,94.04352959,151.58,151.54,2.46408587]
[1745526163533,94.04352959,151.58,151.55,9.06256821]
[1745526164620,94.04352959,151.58,151.56,2.46408587]
[1745526164946,11.34352959,151.57,151.56,2.46408587]
[1745526166143,11.34352959,151.57,151.55,6.59848159]
[1745526166746,11.34352959,151.57,151.54,6.59891777]
[1745526166940,11.34352959,151.59,151.54,17.94244736]
[1745526167332,11.34352959,151.58,151.54,34.4397418]
[1745526167636,11.34352959,151.58,151.55,2.46514859]
[1745526168545,26.063,151.6,151.56,2.46514859]
[1745526168734,11.34352959,151.58,151.56,2.46514859]
[1745526168940,11.34352959,151.58,151.57,6.59761166]
[1745526169242,11.34352959,151.58,151.56,9.06305817]
[1745526169445,11.34352959,151.58,151.56,6.59790958]
[1745526170945,11.34352959,151.58,151.55,6.59848234]
[1745526171445,11.34352959,151.59,151.56,2.46498377]
[1745526171745,11.34352959,151.58,151.56,2.46498377]
[1745526172854,11.34352959,151.57,151.56,2.46498377]
[1745526173030,11.34352959,151.57,151.54,6.59871088]
[1745526173233,11.34352959,151.56,151.53,6.59922338]
[1745526173930,11.34352959,151.56,151.54,2.46701948]
[1745526174743,11.34352959,151.56,151.55,2.46701948]
[1745526177358,82.7,151.57,151.55,9.0654355]
[1745526177857,82.7,151.57,151.56,2.46701948]
[1745526179131,82.7,151.57,151.56,9.06506645]
[1745526180734,82.7,151.57,151.56,20.40859604]
[1745526182453,0.063,151.6,151.56,25.3433538]
[1745526182652,0.063,151.6,151.58,6.5971764]
[1745526183358,0.063,151.6,151.59,4.93475776]
[1745526184654,11.40652959,151.6,151.59,4.93475776]
[1745526186859,18.00283565,151.6,151.59,4.93475776]
[1745526187068,18.00283565,151.6,151.55,6.5980569]
[1745526187240,11.34352959,151.58,151.55,6.5980569]
[1745526187659,11.34352959,151.58,151.56,4.93407865]
[1745526187959,11.34352959,151.57,151.56,4.93407865]
[1745526188359,11.34352959,151.57,151.56,7.40114778]
[1745526189563,11.34352959,151.57,151.56,2.46706913]
[1745526189760,11.34352959,151.57,151.56,7.40199997]
[1745526189961,11.34352959,151.57,151.56,4.93493084]
[1745526191860,11.34352959,151.57,151.56,7.40371572]
[1745526193661,17.94114125,151.57,151.56,7.40371572]
[1745526193851,11.34352959,151.57,151.56,7.40371572]
[1745526194051,11.34352959,151.57,151.56,4.93493084]
[1745526197054,94.04352959,151.57,151.56,4.93493084]
[1745526210977,94.04352959,151.57,151.56,4.93493084]
[1745526213806,82.7,151.57,151.56,11.53297781]
[1745526214096,82.7,151.57,151.56,25.34469714]
[1745526214287,82.7,151.57,151.56,45.71010757]
[1745526214595,0.063,151.6,151.57,18.79181043]
[1745526214784,0.063,151.6,151.59,11.34352959]
[1745526215099,0.063,151.6,151.59,30.13534002]
[1745526215463,0.063,151.6,151.59,36.73208122]
[1745526215679,0.063,151.6,151.59,44.1352018]
[1745526215899,0.063,151.61,151.6,18.79181043]
[1745526216192,0.063,151.61,151.6,30.13534002]
[1745526216489,0.063,151.61,151.6,32.60352976]
[1745526216672,0.063,151.61,151.6,37.5384606]
[1745526217290,0.063,151.63,151.6,60.62553183]
[1745526217695,0.063,151.63,151.62,11.34352959]
[1745526218194,0.063,151.63,151.62,18.74665017]
[1745526218894,0.063,151.63,151.62,39.1132606]
[1745526219274,0.063,151.63,151.62,45.70869655]
[1745526220576,0.063,151.64,151.63,30.13534002]
[1745526221079,0.063,151.65,151.64,18.79181043]
[1745526221285,1e-08,151.65,151.64,54.80483693]
[1745526221679,1e-08,151.65,151.64,57.27302667]
[1745526228693,1e-08,151.65,151.64,60.49692617]
[1745526229797,0.063,151.68,151.67,30.13534002]
[1745526230001,1e-08,151.68,151.67,36.7286017]
[1745526230200,1e-08,151.68,151.67,41.66353254]
[1745526230382,1e-08,151.68,151.67,94.8301509]
[1745526231275,1e-08,151.68,151.67,49.45603254]
[1745526232922,1e-08,151.68,151.67,43.27993254]
[1745526234188,1e-08,151.68,151.67,38.3450017]
[1745526237516,1e-08,151.68,151.67,36.7286017]
[1745526245601,1e-08,151.68,151.67,41.59599612]
[1745526245799,1e-08,151.68,151.67,22.80418569]
[1745526245998,1e-08,151.68,151.67,11.4606561]
[1745526246618,1e-08,151.68,151.67,17.93679127]
[1745526251414,1e-08,151.68,151.67,36.7286017]
[1745526251734,1e-08,151.68,151.67,108.10272006]
[1745526252302,1e-08,151.68,151.67,112.98202732]
[1745526252503,1e-08,151.68,151.67,115.42270174]
[1745526254731,1e-08,151.69,151.68,18.79181043]
[1745526254917,1e-08,151.69,151.68,77.9501328]
[1745526255427,1e-08,151.69,151.68,82.82944006]
[1745526255729,1e-08,151.7,151.68,82.82944006]
[1745526255930,1e-08,151.7,151.69,30.13534002]
[1745526256102,1e-08,151.7,151.69,50.5753217]
[1745526256809,1e-08,151.7,151.69,57.16771407]
[1745526260842,1e-08,151.7,151.69,44.04771407]
[1745526261725,1e-08,151.7,151.69,13.91237405]
[1745526265541,1e-08,151.7,151.69,25.25590364]
[1745526267146,1e-08,151.7,151.69,44.04771407]
[1745526282750,1e-08,151.7,151.69,32.70418448]
[1745526283055,1e-08,151.7,151.69,44.04771407]
[1745526287767,1e-08,151.71,151.7,18.79181043]
[1745526287947,1e-08,151.71,151.7,32.57601444]
[1745526288343,1e-08,151.71,151.7,37.4553217]
[1745526288565,1e-08,151.71,151.7,35.01464728]
[1745526288769,1e-08,151.71,151.7,30.13534002]
[1745526289967,1e-08,151.71,151.7,36.72729783]
[1745526290554,1e-08,151.71,151.7,44.10708009]
[1745526294450,1e-08,151.71,151.7,57.20708009]
[1745526295356,1e-08,151.71,151.7,43.96491852]
[1745526295667,1e-08,151.71,151.7,57.20708009]
[1745526303275,1e-08,151.72,151.71,0.14216157]
[1745526303477,1e-08,151.72,151.71,30.13534002]
[1745526303684,1e-08,151.72,151.71,32.59528336]
[1745526304380,1e-08,151.73,151.72,18.64964886]
[1745526304580,1e-08,151.73,151.72,30.13534002]
[1745526305183,1e-08,151.73,151.72,35.05517894]
[1745526305373,1e-08,151.73,151.72,37.51512228]
[1745526306595,1e-08,151.73,151.72,44.10621112]
[1745526314899,0.063,151.76,151.73,0.14216157]
[1745526315061,0.063,151.76,151.75,36.58296428]
[1745526315867,0.063,151.76,151.75,43.96274654]
[1745526317412,0.063,151.76,151.75,44.10490811]
[1745526321306,0.063,151.76,151.75,32.76137852]
[1745526321483,0.063,151.76,151.75,44.10490811]
[1745526322374,0.063,151.76,151.75,7.37978226]
[1745526322607,19.23692959,151.76,151.75,7.37978226]
[1745526323508,90.61104795,151.76,151.75,3.25323892]
[1745526323729,89.00084795,151.76,151.75,1.58663892]
[1745526323882,6.222,151.71,151.64,16.92802986]
[1745526324088,11.34352959,151.69,151.64,28.27155945]
[1745526324304,11.34352959,151.68,151.65,2.46006889]
[1745526324899,11.34352959,151.68,151.65,9.05417666]
[1745526325088,11.34352959,151.68,151.65,6.59410777]
[1745526325718,11.34352959,151.68,151.64,28.27163135]
[1745526325890,11.34352959,151.68,151.64,16.92810176]
[1745526326291,11.34352959,151.69,151.64,28.27163135]
[1745526326986,11.34352959,151.69,151.65,2.45450027]
[1745526327486,11.34352959,151.69,151.66,6.59369642]
[1745526328018,11.34352959,151.68,151.65,6.59399738]
[1745526330520,11.34352959,151.67,151.65,6.59399738]
[1745526330817,11.34352959,151.67,151.64,6.59450381]
[1745526331298,11.34352959,151.67,151.63,6.62500098]
[1745526332420,11.34352959,151.67,151.63,17.96853057]
[1745526332916,11.34352959,151.68,151.63,17.96853057]
[1745526333303,11.34352959,151.68,151.64,11.34352959]
[1745526334406,94.04352959,151.69,151.64,11.34352959]
[1745526334606,94.04352959,151.69,151.65,11.34352959]
[1745526334810,94.04352959,151.69,151.64,11.34352959]
[1745526336724,11.34352959,151.68,151.65,6.59413122]
[1745526337105,11.34352959,151.67,151.64,6.59444404]
[1745526337305,82.7,151.69,151.63,0.03]
[1745526337306,11.34352959,151.65,151.63,0.03]
[1745526337496,11.34352959,151.66,151.63,6.62474758]
[1745526341321,11.34352959,151.66,151.63,0.03]
[1745526341529,11.34352959,151.65,151.63,0.03]
[1745526341710,11.34352959,151.67,151.63,0.03]
[1745526341896,11.34352959,151.67,151.63,11.37352959]
[1745526342096,94.04352959,151.68,151.64,11.34352959]
[1745526343019,94.04352959,151.68,151.63,0.03]
[1745526343232,11.34352959,151.67,151.63,11.37352959]
[1745526344016,11.34352959,151.67,151.63,17.96818025]
[1745526344897,11.34352959,151.67,151.63,6.62465066]
[1745526345299,11.34352959,151.66,151.63,6.62465066]
[1745526346014,11.34352959,151.66,151.63,0.03]
[1745526347230,11.34352959,151.66,151.63,6.62500098]
[1745526348842,82.7,151.68,151.63,6.62500098]
[1745526349037,11.34352959,151.67,151.63,17.96853057]
[1745526351206,94.04352959,151.68,151.64,11.34352959]
[1745526351412,82.7,151.68,151.64,11.34352959]
[1745526351640,94.04352959,151.68,151.63,34.45603304]
[1745526354429,82.7,151.68,151.65,11.34352959]
[1745526354619,82.7,151.68,151.67,11.34352959]
[1745526354944,82.7,151.73,151.67,30.13534002]
[1745526355127,82.7,151.73,151.69,11.34352959]
[1745526356437,82.7,151.73,151.7,6.59195781]
[1745526358822,82.7,151.73,151.7,17.9354874]
[1745526359448,94.04352959,151.75,151.71,11.34352959]
[1745526359647,82.7,151.75,151.72,11.34352959]
[1745526360020,11.40652959,151.76,151.72,11.34352959]
[1745526361047,11.40652959,151.76,151.71,11.34352959]
[1745526362250,11.40652959,151.76,151.72,11.34352959]
[1745526363240,11.34352959,151.75,151.72,6.5907936]
[1745526364557,11.34352959,151.75,151.71,17.93488517]
[1745526364741,11.34352959,151.74,151.7,11.34352959]
[1745526364943,11.34352959,151.75,151.7,17.93536032]
[1745526365231,11.34352959,151.75,151.71,11.34352959]
[1745526365733,11.34352959,151.75,151.7,17.93536032]
[1745526366653,11.34352959,151.74,151.7,17.93536032]
[1745526367138,11.34352959,151.75,151.7,17.93536032]
[1745526367538,11.34352959,151.75,151.71,2.45139782]
[1745526368348,11.34352959,151.75,151.7,17.93536032]
[1745526370047,94.04352959,151.75,151.7,17.93536032]
[1745526370353,94.04352959,151.75,151.71,2.45113004]
[1745526370551,82.7,151.75,151.72,11.34352959]
[1745526370868,82.7,151.75,151.71,2.45113004]
[1745526370869,82.7,151.75,151.73,11.34352959]
[1745526373266,82.7,151.75,151.74,6.59022011]
[1745526373566,82.7,151.75,151.72,11.34352959]
[1745526374170,82.7,151.75,151.73,6.59050515]
[1745526375969,11.40652959,151.76,151.73,6.59050515]
[1745526378152,0.063,151.76,151.73,17.93403474]
[1745526378350,0.063,151.76,151.74,11.34352959]
[1745526380144,0.063,151.76,151.74,6.58989289]
[1745526381571,11.40652959,151.76,151.71,6.5915233]
[1745526381750,11.40652959,151.76,151.71,17.93505289]
[1745526381952,11.40652959,151.76,151.72,11.34352959]
[1745526382676,11.40652959,151.76,151.72,17.93443939]
[1745526383680,17.99590252,151.76,151.72,17.93443939]
[1745526383879,17.99590252,151.76,151.72,6.5909098]
[1745526387282,11.40652959,151.76,151.72,17.93443939]
[1745526389987,17.99597786,151.76,151.72,6.5909098]
[1745526391793,11.34352959,151.73,151.69,11.34352959]
[1745526392090,11.34352959,151.73,151.68,12.96022959]
[1745526392662,11.34352959,151.73,151.69,9.04419984]
[1745526392868,17.93419956,151.73,151.69,9.04419984]
[1745526393069,11.34352959,151.72,151.69,2.45213449]
[1745526393487,11.34352959,151.72,151.68,8.20943202]
[1745526394497,11.34352959,151.71,151.68,8.20943202]
[1745526394703,11.34352959,151.71,151.68,6.59273202]
[1745526395499,11.34352959,151.71,151.67,6.59326139]
[1745526396177,11.34352959,151.71,151.68,2.45646686]
[1745526396688,11.34352959,151.71,151.67,6.59326139]
[1745526398310,11.34352959,151.71,151.68,2.45899394]
[1745526399200,11.34352959,151.71,151.69,2.45899394]
[1745526399401,94.04352959,151.71,151.69,2.45899394]
[1745526400198,94.04352959,151.71,151.68,2.45899394]
[1745526400992,94.04352959,151.71,151.69,2.45899394]
[1745526401505,11.34352959,151.7,151.69,2.45899394]
[1745526402003,11.34352959,151.7,151.67,2.45899394]
[1745526402205,11.34352959,151.69,151.67,2.45899394]
[1745526403203,11.34352959,151.68,151.67,2.45899394]
[1745526404082,11.34352959,151.68,151.66,2.45899394]
[1745526405798,11.34352959,151.67,151.66,2.45899394]
[1745526405986,11.34352959,151.67,151.64,0.03]
[1745526406184,11.34352959,151.66,151.64,0.03]
[1745526411213,94.04352959,151.66,151.64,0.03]
[1745526412392,11.34352959,151.65,151.64,0.03]
[1745526413896,17.93766081,151.65,151.64,0.03]
[1745526414221,11.34352959,151.65,151.64,0.03]
[1745526425204,43.93766081,151.65,151.64,0.03]
[1745526426500,37.34352959,151.65,151.64,0.03]
[1745526428626,43.93766081,151.65,151.64,0.03]
[1745526430520,37.34352959,151.65,151.64,0.03]
[1745526433825,43.93766081,151.65,151.64,0.03]
[1745526462640,37.34352959,151.65,151.64,0.03]
[1745526462839,43.93766081,151.65,151.64,0.03]
[1745526485663,62.72947124,151.65,151.64,0.03]
[1745526487042,43.93766081,151.65,151.64,0.03]
[1745526489958,37.34352959,151.65,151.64,0.03]
[1745526492057,13.08,151.67,151.64,0.03]
[1745526492058,13.08,151.67,151.64,4.96193335]
[1745526492277,11.34352959,151.65,151.64,4.96193335]
[1745526492603,31.58534971,151.68,151.64,4.96193335]
[1745526492757,11.34352959,151.67,151.64,4.96193335]
[1745526493143,11.34352959,151.67,151.65,2.46456447]
[1745526493636,31.58534971,151.68,151.65,8.46576447]
[1745526493637,5.58534971,151.68,151.65,8.46576447]
[1745526493841,16.9288793,151.68,151.66,4.93193335]
[1745526494436,11.34352959,151.67,151.66,4.93193335]
[1745526496260,17.93679127,151.67,151.66,4.93193335]
[1745526496465,17.93679127,151.67,151.64,0.03]
[1745526496667,11.34352959,151.65,151.64,0.03]
[1745526497067,11.34352959,151.65,151.64,4.95119721]
[1745526499880,11.34352959,151.65,151.64,0.03]
[1745526500383,17.93766081,151.65,151.64,0.03]
[1745526508691,11.34352959,151.65,151.64,0.03]
[1745526509097,11.34352959,151.65,151.64,1.5616]
[1745526511476,17.93766081,151.65,151.64,0.03]
[1745526512789,11.34352959,151.65,151.64,0.03]
[1745526513771,17.93766081,151.65,151.64,0.03]
[1745526515182,11.34352959,151.65,151.64,0.03]
[1745526516795,17.93766081,151.65,151.64,0.03]
[1745526528794,62.72947124,151.65,151.64,0.03]
[1745526529106,43.93766081,151.65,151.64,0.03]
[1745526535004,5.58534971,151.68,151.64,0.03]
[1745526535197,11.34352959,151.67,151.64,0.03]
[1745526535401,37.34352959,151.67,151.64,0.03]
[1745526535616,11.34352959,151.66,151.64,0.03]
[1745526536691,16.9288793,151.68,151.66,1.5663]
[1745526536896,11.34352959,151.68,151.66,1.5663]
[1745526537507,11.34352959,151.69,151.66,1.5663]
[1745526537917,37.34352959,151.7,151.67,4.91887239]
[1745526538294,108.7,151.72,151.67,22.45870198]
[1745526538503,82.7,151.71,151.67,22.45870198]
[1745526538700,82.7,151.71,151.68,6.592827]
[1745526539102,82.7,151.71,151.69,4.91887239]
[1745526540113,82.7,151.71,151.68,6.592827]
[1745526540625,94.04352959,151.71,151.68,6.592827]
[1745526541315,94.04352959,151.71,151.67,24.13293309]
[1745526542130,94.04352959,151.71,151.68,4.90933588]
[1745526542926,94.04352959,151.71,151.67,24.13293309]
[1745526544504,94.04352959,151.71,151.68,4.90053075]
[1745526545502,94.04352959,151.71,151.67,24.13293309]
[1745526547644,11.34352959,151.7,151.67,12.7894035]
[1745526550318,11.34352959,151.7,151.67,6.1963]
[1745526550720,11.34352959,151.68,151.66,1.5663]
[1745526550922,11.34352959,151.67,151.66,1.5663]
[1745526553738,11.34352959,151.68,151.66,1.5663]
[1745526556240,94.04352959,151.69,151.66,1.5663]
[1745526557242,11.34352959,151.68,151.66,1.5663]
[1745526560439,94.04352959,151.69,151.66,1.5663]
[1745526560638,82.7,151.68,151.66,1.5663]
[1745526564151,94.04352959,151.68,151.66,1.5663]
[1745526566433,82.7,151.68,151.66,1.5663]
[1745526566825,11.34352959,151.67,151.64,0.03]
[1745526567028,11.34352959,151.65,151.64,0.03]
[1745526572946,17.93766081,151.65,151.64,0.03]
[1745526573155,11.34352959,151.65,151.64,0.03]
[1745526575647,17.93766081,151.65,151.64,0.03]
[1745526586570,11.34352959,151.65,151.64,0.03]
[1745526587259,6.59300417,151.68,151.64,0.03]
[1745526587460,11.34352959,151.67,151.64,4.93881131]
[1745526588068,11.34352959,151.66,151.64,0.03]
[1745526592247,11.34352959,151.67,151.64,0.03]
[1745526592865,94.04352959,151.68,151.64,0.03]
[1745526593668,94.04352959,151.68,151.65,11.50846912]
[1745526594674,94.04352959,151.68,151.65,6.59395164]
[1745526596374,94.04352959,151.68,151.64,6.62456607]
[1745526597269,94.04352959,151.68,151.65,4.91831091]
[1745526597964,94.04352959,151.68,151.65,11.51244141]
[1745526598172,94.04352959,151.68,151.65,6.5941305]
[1745526598888,82.7,151.67,151.65,6.5941305]
[1745526600276,82.7,151.67,151.64,6.62456607]
[1745526600569,11.34352959,151.66,151.64,0.03]
[1745526600778,11.34352959,151.66,151.65,4.91923177]
[1745526603655,11.34352959,151.66,151.65,4.91766475]
[1745526606661,5.78089431,151.69,151.65,4.91766475]
[1745526606866,11.34352959,151.68,151.65,11.51176199]
[1745526607179,11.34352959,151.68,151.66,4.91766475]
[1745526608176,11.34352959,151.67,151.66,4.91766475]